[Event "Live Chess"]
[Site "Chess.com"]
[Date "2023.05.20"]
[Round "-"]
[White "gmnorfolk"]
[Black "MarkLim1"]
[Result "1-0"]
[WhiteElo "2049"]
[BlackElo "1661"]
[TimeControl "300"]
[EndTime "13:05:56 PDT"]
[Termination "gmnorfolk won by resignation"]

1. d4 {[%clk 0:04:58.1]} 1... Nf6 {[%clk 0:04:58.8]} 2. c4 {[%clk 0:04:56.8]}
2... e6 {[%clk 0:04:58.1]} 3. Nc3 {[%clk 0:04:55.8]} 3... d5 {[%clk 0:04:57.1]}
4. cxd5 {[%clk 0:04:54.7]} 4... Nxd5 {[%clk 0:04:56.1]} 5. e4 {[%clk 0:04:52.1]}
5... Nxc3 {[%clk 0:04:55.3]} 6. bxc3 {[%clk 0:04:51.6]} 6... c5 {[%clk
0:04:54.8]} 7. Rb1 {[%clk 0:04:50.3]} 7... Be7 {[%clk 0:04:51.7]} 8. Bb5+ {[%clk
0:04:46.5]} 8... Bd7 {[%clk 0:04:49.6]} 9. Qa4 {[%clk 0:04:37.6]} 9... O-O
{[%clk 0:04:44.6]} 10. Bxd7 {[%clk 0:04:36.1]} 10... Nxd7 {[%clk 0:04:39.6]} 11.
Nf3 {[%clk 0:04:31.4]} 11... b6 {[%clk 0:04:36.8]} 12. O-O {[%clk 0:04:29]}
12... cxd4 {[%clk 0:04:35.5]} 13. cxd4 {[%clk 0:04:27.6]} 13... Nf6 {[%clk
0:04:34.4]} 14. Re1 {[%clk 0:04:18.8]} 14... Qd7 {[%clk 0:04:30]} 15. Bb2 {[%clk
0:04:14.8]} 15... Rfc8 {[%clk 0:04:28.5]} 16. Qxd7 {[%clk 0:04:12.2]} 16... Nxd7
{[%clk 0:04:27.1]} 17. Rbc1 {[%clk 0:04:09.6]} 17... Nf6 {[%clk 0:04:23]} 18.
Ne5 {[%clk 0:03:58.2]} 18... Rxc1 {[%clk 0:04:18.5]} 19. Bxc1 {[%clk 0:03:58.1]}
19... Rc8 {[%clk 0:04:14.8]} 20. f3 {[%clk 0:03:55.5]} 20... h6 {[%clk
0:04:13.2]} 21. Be3 {[%clk 0:03:50]} 21... Rc2 {[%clk 0:04:10.4]} 22. a4 {[%clk
0:03:46.2]} 22... Ra2 {[%clk 0:04:08.9]} 23. Nc6 {[%clk 0:03:45]} 23... Bf8
{[%clk 0:04:03.3]} 24. g4 {[%clk 0:03:40.9]} 24... Rxa4 {[%clk 0:04:02]} 25. h4
{[%clk 0:03:40.4]} 25... Bb4 {[%clk 0:03:45.1]} 26. Rd1 {[%clk 0:03:29.4]} 26...
Kf8 {[%clk 0:03:42.5]} 27. g5 {[%clk 0:03:19.6]} 27... hxg5 {[%clk 0:03:41.4]}
28. hxg5 {[%clk 0:03:19.1]} 28... Nd7 {[%clk 0:03:36.1]} 29. Rc1 {[%clk
0:03:11.7]} 29... Ke8 {[%clk 0:03:26.1]} 30. Kf2 {[%clk 0:02:57.9]} 30... g6
{[%clk 0:03:24.9]} 31. Rh1 {[%clk 0:02:51]} 31... Ra2+ {[%clk 0:03:08.5]} 32.
Kg3 {[%clk 0:02:47.6]} 32... a5 {[%clk 0:02:59.9]} 33. Rb1 {[%clk 0:02:30.3]}
33... Bd6+ {[%clk 0:02:50]} 34. e5 {[%clk 0:02:22.6]} 34... Bc7 {[%clk 0:02:46]}
35. f4 {[%clk 0:02:03.7]} 35... a4 {[%clk 0:02:39]} 36. Na7 {[%clk 0:01:52.1]}
36... a3 {[%clk 0:02:30.6]} 37. Nb5 {[%clk 0:01:47.1]} 37... Re2 {[%clk
0:02:28.6]} 38. Kf3 {[%clk 0:01:43.3]} 38... a2 {[%clk 0:02:18.8]} 39. Ra1
{[%clk 0:01:42]} 39... Rc2 {[%clk 0:02:01.9]} 40. Nxc7+ {[%clk 0:01:38.4]} 40...
Rxc7 {[%clk 0:02:00.6]} 41. Rxa2 {[%clk 0:01:37.6]} 41... b5 {[%clk 0:01:50.2]}
42. Ra8+ {[%clk 0:01:32.9]} 42... Ke7 {[%clk 0:01:49.2]} 43. Bd2 {[%clk
0:01:32.4]} 43... Nb6 {[%clk 0:01:36.9]} 44. Bb4+ {[%clk 0:01:23]} 44... Kd7
{[%clk 0:01:35.4]} 45. Rb8 {[%clk 0:01:10.2]} 45... Kc6 {[%clk 0:01:23.7]} 46.
Ba5 {[%clk 0:01:03.7]} 46... Nd5 {[%clk 0:01:17.2]} 47. Bxc7 {[%clk 0:01:00.1]}
47... Nxc7 {[%clk 0:01:13.7]} 48. Rf8 {[%clk 0:00:58.7]} 48... Nd5 {[%clk
0:01:12.3]} 49. Rxf7 {[%clk 0:00:55.8]} 49... b4 {[%clk 0:01:12.2]} 50. Ke4
{[%clk 0:00:53.6]} 1-0

[Event "Live Chess"]
[Site "Chess.com"]
[Date "2023.05.20"]
[Round "-"]
[White "Pablo_dmp"]
[Black "xx_blindpuffin_xx"]
[Result "1-0"]
[WhiteElo "1887"]
[BlackElo "2205"]
[TimeControl "300"]
[EndTime "13:06:04 PDT"]
[Termination "Pablo_dmp won by resignation"]

1. e4 {[%clk 0:04:59.1]} 1... c6 {[%clk 0:04:58.4]} 2. d4 {[%clk 0:04:57.7]}
2... d5 {[%clk 0:04:57.7]} 3. e5 {[%clk 0:04:57.3]} 3... Bf5 {[%clk 0:04:56.3]}
4. h4 {[%clk 0:04:55.7]} 4... Bd7 {[%clk 0:04:53.9]} 5. Nf3 {[%clk 0:04:52.5]}
5... e6 {[%clk 0:04:53.1]} 6. c4 {[%clk 0:04:49.8]} 6... dxc4 {[%clk 0:04:48.5]}
7. Bxc4 {[%clk 0:04:49.7]} 7... Ne7 {[%clk 0:04:45.4]} 8. Nc3 {[%clk 0:04:45.9]}
8... Nd5 {[%clk 0:04:42.2]} 9. O-O {[%clk 0:04:39]} 9... Be7 {[%clk 0:04:40]}
10. g3 {[%clk 0:04:34.6]} 10... O-O {[%clk 0:04:34.6]} 11. a3 {[%clk 0:04:26.1]}
11... a5 {[%clk 0:04:30.9]} 12. Ne4 {[%clk 0:04:25.1]} 12... Na6 {[%clk
0:04:26.7]} 13. Nfg5 {[%clk 0:04:19.7]} 13... g6 {[%clk 0:03:54.2]} 14. Kg2
{[%clk 0:04:12.4]} 14... c5 {[%clk 0:03:51.5]} 15. dxc5 {[%clk 0:04:01.3]} 15...
Nxc5 {[%clk 0:03:38.5]} 16. Bxd5 {[%clk 0:03:52]} 16... exd5 {[%clk 0:03:35.9]}
17. Qxd5 {[%clk 0:03:24.6]} 17... Nxe4 {[%clk 0:03:28]} 18. Nxe4 {[%clk
0:03:19.9]} 18... Bc6 {[%clk 0:03:26.2]} 19. Qc4 {[%clk 0:03:13.7]} 19... Qd7
{[%clk 0:03:12.3]} 20. Bg5 {[%clk 0:03:08.4]} 20... Bb5 {[%clk 0:02:57.8]} 21.
Qb3 {[%clk 0:02:47.7]} 21... Bxf1+ {[%clk 0:02:54.5]} 22. Rxf1 {[%clk
0:02:46.9]} 22... Qc6 {[%clk 0:02:46.3]} 23. f3 {[%clk 0:02:40.8]} 23... Rfe8
{[%clk 0:02:39.2]} 24. Bxe7 {[%clk 0:02:39.1]} 24... Rxe7 {[%clk 0:02:38.1]} 25.
Nf6+ {[%clk 0:02:37.7]} 25... Kg7 {[%clk 0:02:37]} 26. Re1 {[%clk 0:02:25.9]}
26... a4 {[%clk 0:02:31.7]} 27. Qe3 {[%clk 0:02:19]} 27... Ra5 {[%clk
0:02:06.5]} 28. Qf4 {[%clk 0:02:11.1]} 28... Qc2+ {[%clk 0:01:58.7]} 29. Kh3
{[%clk 0:02:07.7]} 29... Qf2 {[%clk 0:01:46.5]} 30. Rc1 {[%clk 0:02:00]} 30...
Raxe5 {[%clk 0:01:39.5]} 31. Ng4 {[%clk 0:01:58.8]} 31... Rf5 {[%clk 0:00:53.4]}
32. Qh6+ {[%clk 0:01:54.9]} 32... Kg8 {[%clk 0:00:50.6]} 33. Nxf2 {[%clk
0:01:54.8]} 33... Re8 {[%clk 0:00:49.1]} 34. Ng4 {[%clk 0:01:52.1]} 34... Rxf3
{[%clk 0:00:47.7]} 35. Rc3 {[%clk 0:01:46]} 35... Rf1 {[%clk 0:00:46.5]} 36. Kg2
{[%clk 0:01:36.3]} 36... Rf5 {[%clk 0:00:45.6]} 37. Rf3 {[%clk 0:01:30.2]} 37...
Re2+ {[%clk 0:00:38.8]} 38. Rf2 {[%clk 0:01:29.5]} 38... Rexf2+ {[%clk
0:00:34.4]} 39. Nxf2 {[%clk 0:01:29.4]} 39... f6 {[%clk 0:00:32]} 40. Qe3 {[%clk
0:01:23.1]} 40... Kf7 {[%clk 0:00:30.4]} 41. Qe4 {[%clk 0:01:17.9]} 41... b5
{[%clk 0:00:29]} 42. Qc6 {[%clk 0:01:12.5]} 42... Re5 {[%clk 0:00:27.8]} 43. Ng4
{[%clk 0:01:10.9]} 43... Re2+ {[%clk 0:00:27.1]} 44. Kh3 {[%clk 0:01:09.8]}
44... Rxb2 {[%clk 0:00:25.4]} 45. Qxf6+ {[%clk 0:01:08.8]} 1-0

[Event "Live Chess"]
[Site "Chess.com"]
[Date "2023.05.20"]
[Round "-"]
[White "chessleanstrategist"]
[Black "Tema1107"]
[Result "0-1"]
[WhiteElo "399"]
[BlackElo "1974"]
[TimeControl "300"]
[EndTime "13:06:17 PDT"]
[Termination "Tema1107 won on time"]

1. c4 {[%clk 0:04:54]} 1... e5 {[%clk 0:04:53.3]} 2. g3 {[%clk 0:04:53.3]} 2...
Nf6 {[%clk 0:04:50.1]} 3. Bg2 {[%clk 0:04:52.6]} 3... c6 {[%clk 0:04:49.5]} 4.
Nf3 {[%clk 0:04:51.5]} 4... d5 {[%clk 0:04:49]} 5. b3 {[%clk 0:04:47.4]} 5...
Nbd7 {[%clk 0:04:46.8]} 6. O-O {[%clk 0:04:46]} 6... Bd6 {[%clk 0:04:44.4]} 7.
Bb2 {[%clk 0:04:38.6]} 7... O-O {[%clk 0:04:39.5]} 8. a4 {[%clk 0:04:36.4]} 8...
Re8 {[%clk 0:04:25.7]} 9. Re1 {[%clk 0:04:34.6]} 9... e4 {[%clk 0:04:24.2]} 10.
Nd4 {[%clk 0:04:24.9]} 10... Ne5 {[%clk 0:04:20.8]} 11. a5 {[%clk 0:04:02.5]}
11... c5 {[%clk 0:04:02.3]} 12. Nb5 {[%clk 0:03:50.6]} 12... d4 {[%clk
0:04:00.9]} 13. Nxd6 {[%clk 0:03:49.2]} 13... Qxd6 {[%clk 0:04:00.8]} 14. d3
{[%clk 0:03:43.4]} 14... e3 {[%clk 0:03:52.6]} 15. f3 {[%clk 0:03:33]} 15... h5
{[%clk 0:03:49.2]} 16. f4 {[%clk 0:03:29.8]} 16... Ng6 {[%clk 0:03:41.9]} 17.
Na3 {[%clk 0:03:01.8]} 17... h4 {[%clk 0:03:38.2]} 18. Nb5 {[%clk 0:02:48]}
18... Qe7 {[%clk 0:03:27.2]} 19. Ba3 {[%clk 0:01:56.3]} 19... a6 {[%clk
0:03:22]} 20. Bxc5 {[%clk 0:01:21.5]} 20... Qxc5 {[%clk 0:03:21.9]} 21. f5
{[%clk 0:00:43.8]} 21... Bxf5 {[%clk 0:03:10]} 22. Bxb7 {[%clk 0:00:31]} 22...
axb5 {[%clk 0:02:36.9]} 23. Bxa8 {[%clk 0:00:29]} 23... Rxa8 {[%clk 0:02:34.4]}
24. a6 {[%clk 0:00:18.4]} 24... hxg3 {[%clk 0:02:28.2]} 0-1

[Event "Live Chess"]
[Site "Chess.com"]
[Date "2023.05.20"]
[Round "-"]
[White "terrub10"]
[Black "Ferrarifan27"]
[Result "0-1"]
[WhiteElo "726"]
[BlackElo "2062"]
[TimeControl "300"]
[EndTime "13:06:20 PDT"]
[Termination "Ferrarifan27 won by checkmate"]

1. d4 {[%clk 0:04:52.7]} 1... Nf6 {[%clk 0:04:58.6]} 2. Bg5 {[%clk 0:04:48.4]}
2... e6 {[%clk 0:04:57.5]} 3. Bxf6 {[%clk 0:04:46.7]} 3... Qxf6 {[%clk
0:04:55.8]} 4. e3 {[%clk 0:04:44.8]} 4... b6 {[%clk 0:04:52.6]} 5. Qf3 {[%clk
0:04:39.4]} 5... Qxf3 {[%clk 0:04:51]} 6. gxf3 {[%clk 0:04:36.8]} 6... Bb7
{[%clk 0:04:50.1]} 7. Bb5 {[%clk 0:04:26.8]} 7... Bd6 {[%clk 0:04:38.4]} 8. Nc3
{[%clk 0:04:21.3]} 8... O-O {[%clk 0:04:34.4]} 9. d5 {[%clk 0:04:17.7]} 9...
exd5 {[%clk 0:04:30]} 10. e4 {[%clk 0:04:15.6]} 10... dxe4 {[%clk 0:04:28.1]}
11. fxe4 {[%clk 0:04:13]} 11... Re8 {[%clk 0:04:25.5]} 12. f4 {[%clk 0:04:06.9]}
12... Bb4 {[%clk 0:04:17.3]} 13. O-O-O {[%clk 0:03:58.6]} 13... Bxc3 {[%clk
0:04:15.7]} 14. bxc3 {[%clk 0:03:54.1]} 14... Bxe4 {[%clk 0:04:14.6]} 15. Bxd7
{[%clk 0:03:37]} 15... Nxd7 {[%clk 0:04:09.4]} 16. Rxd7 {[%clk 0:03:29.4]} 16...
Bxh1 {[%clk 0:04:07.6]} 17. Rxc7 {[%clk 0:03:26.3]} 17... Re1+ {[%clk
0:04:06.2]} 18. Kd2 {[%clk 0:03:23.9]} 18... Rxg1 {[%clk 0:04:05.3]} 19. c4
{[%clk 0:03:15.2]} 19... Rg2+ {[%clk 0:04:03.9]} 20. Ke3 {[%clk 0:03:13.5]}
20... Rxc2 {[%clk 0:04:01.7]} 21. Kd4 {[%clk 0:03:05.3]} 21... Rxa2 {[%clk
0:03:59.6]} 22. Ke5 {[%clk 0:03:04.1]} 22... Rd8 {[%clk 0:03:52.3]} 23. f5
{[%clk 0:03:02.7]} 23... a5 {[%clk 0:03:44]} 24. f6 {[%clk 0:02:52.2]} 24...
Re2+ {[%clk 0:03:41.4]} 25. Kf5 {[%clk 0:02:49.7]} 25... Rf2+ {[%clk 0:03:40.5]}
26. Kg5 {[%clk 0:02:47.2]} 26... gxf6+ {[%clk 0:03:37.9]} 27. Kh6 {[%clk
0:02:44.3]} 27... Rxh2# {[%clk 0:03:26.8]} 0-1

[Event "Live Chess"]
[Site "Chess.com"]
[Date "2023.05.20"]
[Round "-"]
[White "Nazar_777"]
[Black "ossie57"]
[Result "0-1"]
[WhiteElo "1577"]
[BlackElo "1920"]
[TimeControl "300"]
[EndTime "13:06:22 PDT"]
[Termination "ossie57 won by checkmate"]

1. e3 {[%clk 0:04:46.8]} 1... d5 {[%clk 0:04:56.1]} 2. h4 {[%clk 0:04:45.9]}
2... Nf6 {[%clk 0:04:51.6]} 3. a3 {[%clk 0:04:45.2]} 3... h6 {[%clk 0:04:49.5]}
4. c4 {[%clk 0:04:44.3]} 4... Bg4 {[%clk 0:04:39.1]} 5. Qc2 {[%clk 0:04:42.4]}
5... Qd7 {[%clk 0:04:30.4]} 6. Nc3 {[%clk 0:04:39.7]} 6... c6 {[%clk 0:04:27]}
7. Nf3 {[%clk 0:04:36.6]} 7... Bf5 {[%clk 0:04:26.1]} 8. Bd3 {[%clk 0:04:34.7]}
8... Bxd3 {[%clk 0:04:21.1]} 9. Qxd3 {[%clk 0:04:33.1]} 9... dxc4 {[%clk
0:04:20.2]} 10. Qxc4 {[%clk 0:04:32.2]} 10... e6 {[%clk 0:04:15.1]} 11. Qb3
{[%clk 0:04:30.8]} 11... Be7 {[%clk 0:04:10]} 12. Qc2 {[%clk 0:04:29.6]} 12...
Na6 {[%clk 0:04:08.3]} 13. b4 {[%clk 0:04:27.7]} 13... Rc8 {[%clk 0:04:05.9]}
14. Bb2 {[%clk 0:04:26.7]} 14... Nc7 {[%clk 0:04:04.7]} 15. Rc1 {[%clk
0:04:25.7]} 15... O-O {[%clk 0:04:03.7]} 16. Qb1 {[%clk 0:04:24.6]} 16... Nfd5
{[%clk 0:03:53.3]} 17. Ng5 {[%clk 0:04:19.7]} 17... f5 {[%clk 0:03:36.5]} 18.
Nf3 {[%clk 0:04:13.4]} 18... Bf6 {[%clk 0:03:30.5]} 19. h5 {[%clk 0:04:11.2]}
19... Nxc3 {[%clk 0:03:29.5]} 20. Bxc3 {[%clk 0:04:09.5]} 20... Nd5 {[%clk
0:03:27.5]} 21. Bxf6 {[%clk 0:04:05.6]} 21... Rxf6 {[%clk 0:03:24.7]} 22. Nh4
{[%clk 0:04:04.3]} 22... f4 {[%clk 0:03:11.6]} 23. Ng6 {[%clk 0:03:59.7]} 23...
fxe3 {[%clk 0:03:09.4]} 24. dxe3 {[%clk 0:03:58.2]} 24... Qf7 {[%clk 0:02:59.2]}
25. Rf1 {[%clk 0:03:55.3]} 25... Ne7 {[%clk 0:02:54.2]} 26. Rd1 {[%clk
0:03:46.7]} 26... Nxg6 {[%clk 0:02:51.2]} 27. hxg6 {[%clk 0:03:44.9]} 27... Rxg6
{[%clk 0:02:46.5]} 28. g3 {[%clk 0:03:43.2]} 28... Rf6 {[%clk 0:02:42.8]} 29.
Qd3 {[%clk 0:03:41.6]} 29... Rf8 {[%clk 0:02:41.4]} 30. f4 {[%clk 0:03:39.9]}
30... Qh5 {[%clk 0:02:37.4]} 31. Qe2 {[%clk 0:03:37.9]} 31... Qh3 {[%clk
0:02:20.3]} 32. Rd2 {[%clk 0:03:30.1]} 32... Qxg3+ {[%clk 0:02:18.5]} 33. Kd1
{[%clk 0:03:28.3]} 33... Qg6 {[%clk 0:02:14.9]} 34. Qf2 {[%clk 0:03:26.1]} 34...
e5 {[%clk 0:02:01.5]} 35. Rd7 {[%clk 0:03:21.5]} 35... Qb1+ {[%clk 0:01:57.7]}
36. Ke2 {[%clk 0:03:17.4]} 36... Qc2+ {[%clk 0:01:55]} 37. Rd2 {[%clk
0:03:07.6]} 37... Qc4+ {[%clk 0:01:53.6]} 38. Ke1 {[%clk 0:03:04.9]} 38... exf4
{[%clk 0:01:52.7]} 39. Rd7 {[%clk 0:02:42.5]} 39... Qc1+ {[%clk 0:01:38.7]} 40.
Rd1 {[%clk 0:02:36.7]} 40... Qc3+ {[%clk 0:01:35.2]} 41. Rd2 {[%clk 0:02:34.4]}
41... fxe3 {[%clk 0:01:33.7]} 42. Qxf6 {[%clk 0:02:27.3]} 42... Qxd2# {[%clk
0:01:30.9]} 0-1

[Event "Live Chess"]
[Site "Chess.com"]
[Date "2023.05.20"]
[Round "-"]
[White "BillythekidFellowes"]
[Black "LanceMaster23"]
[Result "1-0"]
[WhiteElo "2035"]
[BlackElo "1867"]
[TimeControl "300"]
[EndTime "13:06:23 PDT"]
[Termination "BillythekidFellowes won on time"]

1. e4 {[%clk 0:04:58.4]} 1... c5 {[%clk 0:04:58.3]} 2. Nf3 {[%clk 0:04:57.5]}
2... Nc6 {[%clk 0:04:57.8]} 3. Bb5 {[%clk 0:04:56.1]} 3... Qc7 {[%clk
0:04:56.8]} 4. Nc3 {[%clk 0:04:55]} 4... e6 {[%clk 0:04:55.8]} 5. Bxc6 {[%clk
0:04:52.8]} 5... bxc6 {[%clk 0:04:54.7]} 6. d4 {[%clk 0:04:52.3]} 6... cxd4
{[%clk 0:04:54.2]} 7. Nxd4 {[%clk 0:04:52.2]} 7... Nf6 {[%clk 0:04:52.8]} 8. O-O
{[%clk 0:04:51.3]} 8... Be7 {[%clk 0:04:51.1]} 9. f4 {[%clk 0:04:49.1]} 9... d6
{[%clk 0:04:49.6]} 10. Be3 {[%clk 0:04:46.1]} 10... e5 {[%clk 0:04:46.7]} 11.
fxe5 {[%clk 0:04:44.4]} 11... dxe5 {[%clk 0:04:46.1]} 12. Nf5 {[%clk 0:04:43.2]}
12... Bxf5 {[%clk 0:04:45.2]} 13. Rxf5 {[%clk 0:04:42.2]} 13... O-O {[%clk
0:04:39.4]} 14. Qe2 {[%clk 0:04:36]} 14... Rad8 {[%clk 0:04:30.7]} 15. h3 {[%clk
0:04:14.5]} 15... Qd7 {[%clk 0:03:21.4]} 16. Rxe5 {[%clk 0:04:01.6]} 16... Bd6
{[%clk 0:03:19]} 17. Ra5 {[%clk 0:03:58.1]} 17... Rfe8 {[%clk 0:02:51.4]} 18.
Rxa7 {[%clk 0:03:51.8]} 18... Qe6 {[%clk 0:02:50]} 19. Rf1 {[%clk 0:03:40.5]}
19... Nxe4 {[%clk 0:01:56.6]} 20. Bd4 {[%clk 0:03:05.9]} 20... Nxc3 {[%clk
0:01:34.5]} 21. Qxe6 {[%clk 0:03:03.1]} 21... Rxe6 {[%clk 0:01:30.9]} 22. bxc3
{[%clk 0:02:59.1]} 22... f6 {[%clk 0:01:19.2]} 23. Rb1 {[%clk 0:02:53.3]} 23...
Rde8 {[%clk 0:00:59.3]} 24. Rbb7 {[%clk 0:02:37.4]} 24... Re1+ {[%clk
0:00:57.8]} 25. Kf2 {[%clk 0:02:36.9]} 25... R1e2+ {[%clk 0:00:57.1]} 26. Kf3
{[%clk 0:02:33]} 26... Bf8 {[%clk 0:00:43.9]} 27. h4 {[%clk 0:01:47.4]} 27... c5
{[%clk 0:00:38.2]} 28. Bf2 {[%clk 0:01:39.8]} 28... Rxc2 {[%clk 0:00:36.9]} 29.
h5 {[%clk 0:01:13.9]} 29... h6 {[%clk 0:00:35.5]} 30. Rb1 {[%clk 0:01:08]} 30...
c4 {[%clk 0:00:32.9]} 31. Bd4 {[%clk 0:01:04.9]} 31... Ree2 {[%clk 0:00:28.3]}
32. Ra8 {[%clk 0:01:03.7]} 32... Kf7 {[%clk 0:00:14.3]} 33. Rb7+ {[%clk
0:01:01]} 33... Re7 {[%clk 0:00:13.5]} 34. Rxf8+ {[%clk 0:00:58.4]} 34... Kxf8
{[%clk 0:00:11.2]} 35. Bc5 {[%clk 0:00:56.1]} 35... Rxc3+ {[%clk 0:00:10.7]} 36.
Kf4 {[%clk 0:00:51.9]} 36... Re3 {[%clk 0:00:04.1]} 37. Rb8+ {[%clk 0:00:50.8]}
37... Kf7 {[%clk 0:00:03.3]} 38. Bxe3 {[%clk 0:00:50.1]} 1-0

[Event "Live Chess"]
[Site "Chess.com"]
[Date "2023.05.20"]
[Round "-"]
[White "LozzaLoaf"]
[Black "EdvancedChess"]
[Result "0-1"]
[WhiteElo "241"]
[BlackElo "1898"]
[TimeControl "300"]
[EndTime "13:06:23 PDT"]
[Termination "EdvancedChess won by checkmate"]

1. d4 {[%clk 0:04:53.9]} 1... Nf6 {[%clk 0:04:59]} 2. Nc3 {[%clk 0:04:51.8]}
2... g6 {[%clk 0:04:57.7]} 3. e4 {[%clk 0:04:49.7]} 3... Bg7 {[%clk 0:04:56.3]}
4. e5 {[%clk 0:04:47.3]} 4... Ng8 {[%clk 0:04:52.9]} 5. Nf3 {[%clk 0:04:42.4]}
5... d6 {[%clk 0:04:51.8]} 6. exd6 {[%clk 0:04:40.8]} 6... cxd6 {[%clk
0:04:49.8]} 7. d5 {[%clk 0:04:36.1]} 7... Nf6 {[%clk 0:04:48.5]} 8. Bf4 {[%clk
0:04:31.4]} 8... O-O {[%clk 0:04:46.9]} 9. Nh4 {[%clk 0:04:28.3]} 9... Nbd7
{[%clk 0:04:45.1]} 10. g3 {[%clk 0:04:27.2]} 10... Nc5 {[%clk 0:04:42.9]} 11. b3
{[%clk 0:04:22.7]} 11... Qa5 {[%clk 0:04:40.1]} 12. Bd2 {[%clk 0:04:14.1]} 12...
Bg4 {[%clk 0:04:27.2]} 13. f3 {[%clk 0:04:11.8]} 13... Bd7 {[%clk 0:04:25.6]}
14. g4 {[%clk 0:04:09.5]} 14... Rac8 {[%clk 0:04:18.4]} 15. g5 {[%clk
0:04:08.5]} 15... Nh5 {[%clk 0:04:15.3]} 16. Rg1 {[%clk 0:03:57.7]} 16... Bxc3
{[%clk 0:04:13.8]} 17. Bxc3 {[%clk 0:03:53.8]} 17... Qxc3+ {[%clk 0:04:12.7]}
18. Qd2 {[%clk 0:03:53]} 18... Qxa1+ {[%clk 0:04:11.7]} 19. Qd1 {[%clk
0:03:50.7]} 19... Qxa2 {[%clk 0:04:10.6]} 20. f4 {[%clk 0:03:40.7]} 20... Nxf4
{[%clk 0:04:07.4]} 21. Nxg6 {[%clk 0:03:38.7]} 21... hxg6 {[%clk 0:04:06.2]} 22.
h3 {[%clk 0:03:36.1]} 22... Ne4 {[%clk 0:04:01.5]} 23. h4 {[%clk 0:03:34.5]}
23... Qxc2 {[%clk 0:03:57.7]} 24. h5 {[%clk 0:03:33.8]} 24... Qxd1+ {[%clk
0:03:56.3]} 25. Kxd1 {[%clk 0:03:32.9]} 25... Nxh5 {[%clk 0:03:51.7]} 26. Rh1
{[%clk 0:03:31.5]} 26... Nf2+ {[%clk 0:03:49.7]} 27. Ke1 {[%clk 0:03:28.2]}
27... Nxh1 {[%clk 0:03:49.6]} 28. Bg2 {[%clk 0:03:27]} 28... Rc1+ {[%clk
0:03:48.4]} 29. Kd2 {[%clk 0:03:24.9]} 29... Rg1 {[%clk 0:03:47.4]} 30. Bxh1
{[%clk 0:03:23.5]} 30... Rxh1 {[%clk 0:03:46.4]} 31. b4 {[%clk 0:03:22.6]} 31...
Rh4 {[%clk 0:03:44.5]} 32. Kc3 {[%clk 0:03:20.7]} 32... Rc8+ {[%clk 0:03:43.8]}
33. Kb3 {[%clk 0:03:17.5]} 33... f6 {[%clk 0:03:43.3]} 34. Ka3 {[%clk 0:03:15]}
34... fxg5 {[%clk 0:03:42.2]} 35. Kb3 {[%clk 0:03:11.6]} 35... g4 {[%clk
0:03:39.1]} 36. b5 {[%clk 0:03:07.9]} 36... b6 {[%clk 0:03:36.9]} 37. Kb4 {[%clk
0:03:07.1]} 37... g3+ {[%clk 0:03:35.9]} 38. Kb3 {[%clk 0:03:03.9]} 38... g2
{[%clk 0:03:35.5]} 39. Kb2 {[%clk 0:03:02.4]} 39... g1=R {[%clk 0:03:34.2]} 40.
Kb3 {[%clk 0:03:01.3]} 40... Rg3+ {[%clk 0:03:33.8]} 41. Kb2 {[%clk 0:02:59.9]}
41... Rh2+ {[%clk 0:03:33.7]} 42. Kb1 {[%clk 0:02:58.6]} 42... Rg1# {[%clk
0:03:33.6]} 0-1

[Event "Live Chess"]
[Site "Chess.com"]
[Date "2023.05.20"]
[Round "-"]
[White "Sacbutt"]
[Black "Bot_Boy"]
[Result "1-0"]
[WhiteElo "2197"]
[BlackElo "330"]
[TimeControl "300"]
[EndTime "13:06:25 PDT"]
[Termination "Sacbutt won on time"]

1. d4 {[%clk 0:04:58.9]} 1... d6 {[%clk 0:04:57.5]} 2. e4 {[%clk 0:04:57.5]}
2... e5 {[%clk 0:04:53.9]} 3. dxe5 {[%clk 0:04:55.3]} 3... dxe5 {[%clk
0:04:51.9]} 4. Qxd8+ {[%clk 0:04:55.2]} 4... Kxd8 {[%clk 0:04:50.8]} 5. Bc4
{[%clk 0:04:55.1]} 5... Ke8 {[%clk 0:04:44.7]} 6. Nc3 {[%clk 0:04:53.5]} 6...
Nf6 {[%clk 0:04:41.1]} 7. Nf3 {[%clk 0:04:52.4]} 7... Nc6 {[%clk 0:04:37.7]} 8.
Bg5 {[%clk 0:04:49.8]} 8... Be7 {[%clk 0:04:34.1]} 9. O-O-O {[%clk 0:04:47.9]}
9... Bg4 {[%clk 0:04:07.9]} 10. Bxf6 {[%clk 0:04:41.9]} 10... gxf6 {[%clk
0:04:01.4]} 11. Bb5 {[%clk 0:04:37.1]} 11... Rd8 {[%clk 0:03:39.7]} 12. Rxd8+
{[%clk 0:04:32.7]} 12... Bxd8 {[%clk 0:03:38.5]} 13. Nd2 {[%clk 0:04:26.2]}
13... Be6 {[%clk 0:03:22]} 14. a3 {[%clk 0:04:22.6]} 14... a6 {[%clk 0:03:10.3]}
15. Bxc6+ {[%clk 0:04:21.2]} 15... bxc6 {[%clk 0:03:09.4]} 16. Na4 {[%clk
0:04:20.4]} 16... Be7 {[%clk 0:02:57.1]} 17. Nb3 {[%clk 0:04:18]} 17... Kf8
{[%clk 0:02:46.8]} 18. Nbc5 {[%clk 0:04:13]} 18... Bxc5 {[%clk 0:02:25.8]} 19.
Nxc5 {[%clk 0:04:12.9]} 19... Bc8 {[%clk 0:02:12.3]} 20. Rd1 {[%clk 0:04:08]}
20... Kg7 {[%clk 0:02:06.6]} 21. b4 {[%clk 0:04:04.1]} 21... Kg6 {[%clk
0:01:53.7]} 22. Rd3 {[%clk 0:04:02]} 22... h5 {[%clk 0:01:49.9]} 23. Rg3+ {[%clk
0:03:59]} 23... Kh6 {[%clk 0:01:29.8]} 24. Rc3 {[%clk 0:03:44.4]} 24... Rg8
{[%clk 0:01:13.2]} 25. g3 {[%clk 0:03:42.3]} 25... f5 {[%clk 0:01:09.1]} 26.
exf5 {[%clk 0:03:38.6]} 26... Bxf5 {[%clk 0:01:06.6]} 27. Nxa6 {[%clk
0:03:36.5]} 27... Bg4 {[%clk 0:00:43.1]} 28. Rxc6+ {[%clk 0:03:31.3]} 28... Rg6
{[%clk 0:00:21]} 29. Rxg6+ {[%clk 0:03:29.5]} 29... fxg6 {[%clk 0:00:18.8]} 30.
Nxc7 {[%clk 0:03:29.4]} 30... Kg5 {[%clk 0:00:12.5]} 31. a4 {[%clk 0:03:28.5]}
31... h4 {[%clk 0:00:11.1]} 32. a5 {[%clk 0:03:24.5]} 32... hxg3 {[%clk
0:00:06.3]} 33. hxg3 {[%clk 0:03:24]} 33... Bc8 {[%clk 0:00:02.9]} 34. a6 {[%clk
0:03:22.8]} 34... Kg4 {[%clk 0:00:01]} 35. b5 {[%clk 0:03:18.4]} 1-0